[Event "Titled Tuesday Blitz January 10 Early 2023"]
[White "Guimaraes, Wagner Peixoto"]
[Black "Volkov, Maksim"]
[WhiteFideId "2100940"]
[BlackFideId "54123070"]
[WhiteElo "2194"]
[BlackElo "2258"]
[Result "0-1"]
[Round "01"]
[TimeControl "180+2"]
[Date "2023.01.10"]
[WhiteClock "0:00:03"]
[BlackClock "0:00:14"]

1. Nf3 {[%clk 0:02:56]}  d5 {[%clk 0:02:59]} 2. g3 {[%clk 0:02:55]}  Bg4 {[%clk 0:02:59]} 3. Bg2 {[%clk 0:02:55]}  e6 {[%clk 0:02:59]} 4. O-O {[%clk 0:02:54]}  Nf6 {[%clk 0:02:59]} 5. c4 {[%clk 0:02:54]}  c6 {[%clk 0:02:59]} 6. d3 {[%clk 0:02:50]}  Nbd7 {[%clk 0:02:57]} 7. Nc3 {[%clk 0:02:49]}  Be7 {[%clk 0:02:53]} 8. Qb3 {[%clk 0:02:44]}  Nc5 {[%clk 0:02:50]} 9. Qc2 {[%clk 0:02:44]}  O-O {[%clk 0:02:49]} 10. b4 {[%clk 0:02:40]}  Ncd7 {[%clk 0:02:47]} 11. a3 {[%clk 0:02:41]}  a5 {[%clk 0:02:45]} 12. Rb1 {[%clk 0:02:39]}  axb4 {[%clk 0:02:43]} 13. axb4 {[%clk 0:02:40]}  Bd6 {[%clk 0:02:31]} 14. b5 {[%clk 0:02:34]}  Qe7 {[%clk 0:02:26]} 15. bxc6 {[%clk 0:02:32]}  bxc6 {[%clk 0:02:26]} 16. Nd4 {[%clk 0:02:22]}  Rfc8 {[%clk 0:02:23]} 17. Rb7 {[%clk 0:01:57]}  e5 {[%clk 0:02:14]} 18. Nb3 {[%clk 0:01:50]}  Qe6 {[%clk 0:02:07]} 19. Bg5 {[%clk 0:01:36]}  dxc4 {[%clk 0:02:01]} 20. dxc4 {[%clk 0:01:37]}  Qxc4 {[%clk 0:02:00]} 21. Rc1 {[%clk 0:01:27]}  h6 {[%clk 0:01:56]} 22. Bxf6 {[%clk 0:01:25]}  Nxf6 {[%clk 0:01:57]} 23. Ne4 {[%clk 0:01:16]}  Qxc2 {[%clk 0:01:46]} 24. Rxc2 {[%clk 0:01:17]}  Nxe4 {[%clk 0:01:39]} 25. Bxe4 {[%clk 0:01:18]}  Ra6 {[%clk 0:01:34]} 26. Kg2 {[%clk 0:01:08]}  Be6 {[%clk 0:01:20]} 27. Nc5 {[%clk 0:01:01]}  Bxc5 {[%clk 0:01:15]} 28. Rxc5 {[%clk 0:01:02]}  f5 {[%clk 0:01:15]} 29. Re7 {[%clk 0:00:49]}  Bf7 {[%clk 0:00:47]} 30. Bxf5 {[%clk 0:00:46]}  Rd8 {[%clk 0:00:47]} 31. Rd7 {[%clk 0:00:41]}  Rxd7 {[%clk 0:00:44]} 32. Bxd7 {[%clk 0:00:42]}  Bd5+ {[%clk 0:00:44]} 33. f3 {[%clk 0:00:40]}  e4 {[%clk 0:00:45]} 34. fxe4 {[%clk 0:00:32]}  Bxe4+ {[%clk 0:00:46]} 35. Kf2 {[%clk 0:00:32]}  Kf8 {[%clk 0:00:46]} 36. Re5 {[%clk 0:00:28]}  Bd5 {[%clk 0:00:46]} 37. h4 {[%clk 0:00:22]}  Ra7 {[%clk 0:00:41]} 38. Bg4 {[%clk 0:00:18]}  Ra2 {[%clk 0:00:39]} 39. Bf3 {[%clk 0:00:16]}  Bxf3 {[%clk 0:00:32]} 40. Kxf3 {[%clk 0:00:17]}  Rc2 {[%clk 0:00:33]} 41. e4 {[%clk 0:00:15]}  Kf7 {[%clk 0:00:33]} 42. Ra5 {[%clk 0:00:15]}  Kf6 {[%clk 0:00:28]} 43. Kf4 {[%clk 0:00:13]}  Rc1 {[%clk 0:00:25]} 44. e5+ {[%clk 0:00:10]}  Ke6 {[%clk 0:00:25]} 45. Ra7 {[%clk 0:00:10]}  Rf1+ {[%clk 0:00:22]} 46. Kg4 {[%clk 0:00:10]}  Rf7 {[%clk 0:00:22]} 47. Ra5 {[%clk 0:00:04]}  Rb7 {[%clk 0:00:17]} 48. Rc5 {[%clk 0:00:04]}  Kd7 {[%clk 0:00:17]} 49. Kh5 {[%clk 0:00:04]}  Rb5 {[%clk 0:00:17]} 50. Rc4 {[%clk 0:00:02]}  Rxe5+ {[%clk 0:00:17]} 51. Kg6 {[%clk 0:00:03]}  Re7 {[%clk 0:00:18]} 52. g4 {[%clk 0:00:03]}  Kd6 {[%clk 0:00:18]} 53. g5 {[%clk 0:00:04]}  hxg5 {[%clk 0:00:17]} 54. hxg5 {[%clk 0:00:04]}  Kd5 {[%clk 0:00:17]} 55. Rc1 {[%clk 0:00:05]}  c5 {[%clk 0:00:18]} 56. Rd1+ {[%clk 0:00:06]}  Kc6 {[%clk 0:00:18]} 57. Rf1 {[%clk 0:00:06]}  c4 {[%clk 0:00:18]} 58. Rc1 {[%clk 0:00:06]}  Kc5 {[%clk 0:00:18]} 59. Ra1 {[%clk 0:00:06]}  c3 {[%clk 0:00:19]} 60. Ra8 {[%clk 0:00:06]}  Kc4 {[%clk 0:00:18]} 61. Rc8+ {[%clk 0:00:06]}  Kd3 {[%clk 0:00:19]} 62. Kh7 {[%clk 0:00:07]}  c2 {[%clk 0:00:19]} 63. g6 {[%clk 0:00:07]}  Kd2 {[%clk 0:00:18]} 64. Rd8+ {[%clk 0:00:07]}  Ke1 {[%clk 0:00:19]} 65. Rc8 {[%clk 0:00:07]}  Kd1 {[%clk 0:00:19]} 66. Rd8+ {[%clk 0:00:08]}  Kc1 {[%clk 0:00:20]} 67. Rc8 {[%clk 0:00:08]}  Rd7 {[%clk 0:00:20]} 68. Kg8 {[%clk 0:00:07]}  Kd1 {[%clk 0:00:20]} 69. Rf8 {[%clk 0:00:04]}  c1=Q {[%clk 0:00:20]} 70. Rf7 {[%clk 0:00:05]}  Qc8+ {[%clk 0:00:19]} 71. Kxg7 {[%clk 0:00:05]}  Rd8 {[%clk 0:00:14]} 72. Kh7 {[%clk 0:00:04]}  Rh8+ {[%clk 0:00:14]} 73. Kg7 {[%clk 0:00:04]}  Qg8+ {[%clk 0:00:14]} 74. Kf6 {[%clk 0:00:05]}  Rh6 {[%clk 0:00:14]} 75. Rg7 {[%clk 0:00:05]}  Qd8+ {[%clk 0:00:14]} 76. Kf7 {[%clk 0:00:04]}  Qd7+ {[%clk 0:00:14]} 77. Kg8 {[%clk 0:00:03]}  Qe8# {[%clk 0:00:14]} 0-1


[Site "https://www.chess.com"]

[Event "Titled Tuesday Blitz January 10 Early 2023"]
[White "Korchmar, Vasiliy"]
[Black "Mrudul Dehankar"]
[WhiteFideId "24131750"]
[BlackFideId "25096990"]
[WhiteElo "2438"]
[BlackElo "2030"]
[Result "1/2-1/2"]
[Round "01"]
[TimeControl "180+2"]
[Date "2023.01.10"]
[WhiteClock "0:00:05"]
[BlackClock "0:00:08"]

1. e4 {[%clk 0:03:00]}  c6 {[%clk 0:02:54]} 2. d4 {[%clk 0:03:00]}  d5 {[%clk 0:02:54]} 3. e5 {[%clk 0:03:01]}  Bf5 {[%clk 0:02:54]} 4. c4 {[%clk 0:03:02]}  e6 {[%clk 0:02:53]} 5. Nc3 {[%clk 0:03:02]}  Bb4 {[%clk 0:02:53]} 6. cxd5 {[%clk 0:02:52]}  cxd5 {[%clk 0:02:10]} 7. h4 {[%clk 0:02:52]}  Nc6 {[%clk 0:02:10]} 8. g4 {[%clk 0:02:50]}  Be4 {[%clk 0:01:28]} 9. f3 {[%clk 0:02:50]}  f6 {[%clk 0:01:19]} 10. fxe4 {[%clk 0:02:42]}  fxe5 {[%clk 0:01:18]} 11. exd5 {[%clk 0:02:34]}  Qxd5 {[%clk 0:01:11]} 12. Rh2 {[%clk 0:01:37]}  exd4 {[%clk 0:01:00]} 13. a3 {[%clk 0:01:38]}  Ba5 {[%clk 0:00:46]} 14. b4 {[%clk 0:01:37]}  Qe5+ {[%clk 0:00:45]} 15. Qe2 {[%clk 0:01:31]}  Bc7 {[%clk 0:00:38]} 16. Nb5 {[%clk 0:00:57]}  Qxh2 {[%clk 0:00:31]} 17. Qxe6+ {[%clk 0:00:58]}  Nge7 {[%clk 0:00:29]} 18. Nxc7+ {[%clk 0:00:48]}  Qxc7 {[%clk 0:00:29]} 19. Bc4 {[%clk 0:00:39]}  Qg3+ {[%clk 0:00:26]} 20. Ke2 {[%clk 0:00:32]}  Rf8 {[%clk 0:00:26]} 21. Nh3 {[%clk 0:00:14]}  Qxh3 {[%clk 0:00:22]} 22. Bg5 {[%clk 0:00:12]}  Qg2+ {[%clk 0:00:19]} 23. Kd1 {[%clk 0:00:12]}  Qf3+ {[%clk 0:00:17]} 24. Kc2 {[%clk 0:00:08]}  d3+ {[%clk 0:00:17]} 25. Kb2 {[%clk 0:00:04]}  Qe2+ {[%clk 0:00:16]} 26. Qxe2 {[%clk 0:00:04]}  dxe2 {[%clk 0:00:17]} 27. Bxe2 {[%clk 0:00:05]}  Rf2 {[%clk 0:00:17]} 28. Re1 {[%clk 0:00:06]}  O-O-O {[%clk 0:00:17]} 29. Be3 {[%clk 0:00:06]}  Rh2 {[%clk 0:00:17]} 30. b5 {[%clk 0:00:06]}  Nd4 {[%clk 0:00:16]} 31. Rc1+ {[%clk 0:00:05]}  Kb8 {[%clk 0:00:15]} 32. Bf4+ {[%clk 0:00:06]}  Ka8 {[%clk 0:00:15]} 33. Bxh2 {[%clk 0:00:06]}  Nxe2 {[%clk 0:00:15]} 34. Re1 {[%clk 0:00:06]}  Rd2+ {[%clk 0:00:15]} 35. Kb3 {[%clk 0:00:06]}  Nd5 {[%clk 0:00:14]} 36. Be5 {[%clk 0:00:03]}  a6 {[%clk 0:00:14]} 37. bxa6 {[%clk 0:00:02]}  bxa6 {[%clk 0:00:14]} 38. Bxg7 {[%clk 0:00:03]}  Nef4 {[%clk 0:00:11]} 39. g5 {[%clk 0:00:02]}  Kb7 {[%clk 0:00:11]} 40. Be5 {[%clk 0:00:01]}  Rd3+ {[%clk 0:00:12]} 41. Kc2 {[%clk 0:00:01]}  Rxa3 {[%clk 0:00:11]} 42. Bxf4 {[%clk 0:00:01]}  Nxf4 {[%clk 0:00:11]} 43. Re7+ {[%clk 0:00:02]}  Kc6 {[%clk 0:00:11]} 44. Rxh7 {[%clk 0:00:03]}  Rh3 {[%clk 0:00:11]} 45. Kd2 {[%clk 0:00:03]}  Kd5 {[%clk 0:00:08]} 46. Rh6 {[%clk 0:00:02]}  a5 {[%clk 0:00:07]} 47. Ra6 {[%clk 0:00:03]}  Ra3 {[%clk 0:00:06]} 48. g6 {[%clk 0:00:04]}  Ke5 {[%clk 0:00:04]} 49. g7 {[%clk 0:00:04]}  Rg3 {[%clk 0:00:04]} 50. Rxa5+ {[%clk 0:00:05]}  Kf6 {[%clk 0:00:04]} 51. Ra4 {[%clk 0:00:04]}  Ne6 {[%clk 0:00:04]} 52. Ra6 {[%clk 0:00:04]}  Rxg7 {[%clk 0:00:04]} 53. Ke3 {[%clk 0:00:04]}  Ke5 {[%clk 0:00:04]} 54. Ra5+ {[%clk 0:00:04]}  Kf6 {[%clk 0:00:05]} 55. h5 {[%clk 0:00:05]}  Rh7 {[%clk 0:00:05]} 56. Kf3 {[%clk 0:00:05]}  Ng5+ {[%clk 0:00:05]} 57. Kg4 {[%clk 0:00:05]}  Ne6 {[%clk 0:00:06]} 58. Ra6 {[%clk 0:00:06]}  Rg7+ {[%clk 0:00:06]} 59. Kh4 {[%clk 0:00:06]}  Rh7 {[%clk 0:00:07]} 60. Kg4 {[%clk 0:00:07]}  Rg7+ {[%clk 0:00:07]} 61. Kh4 {[%clk 0:00:07]}  Rd7 {[%clk 0:00:07]} 62. Rb6 {[%clk 0:00:06]}  Rd4+ {[%clk 0:00:07]} 63. Kg3 {[%clk 0:00:06]}  Kf5 {[%clk 0:00:07]} 64. Rb5+ {[%clk 0:00:06]}  Kf6 {[%clk 0:00:07]} 65. Rb6 {[%clk 0:00:06]}  Rd8 {[%clk 0:00:07]} 66. Kg4 {[%clk 0:00:06]}  Rg8+ {[%clk 0:00:07]} 67. Kh4 {[%clk 0:00:07]}  Rg1 {[%clk 0:00:07]} 68. Kh3 {[%clk 0:00:05]}  Rh1+ {[%clk 0:00:07]} 69. Kg4 {[%clk 0:00:05]}  Rg1+ {[%clk 0:00:07]} 70. Kh4 {[%clk 0:00:06]}  Ra1 {[%clk 0:00:06]} 71. Kg4 {[%clk 0:00:06]}  Ra4+ {[%clk 0:00:07]} 72. Kh3 {[%clk 0:00:06]}  Kf7 {[%clk 0:00:06]} 73. Rb7+ {[%clk 0:00:06]}  Kg8 {[%clk 0:00:07]} 74. Kg3 {[%clk 0:00:06]}  Ng7 {[%clk 0:00:06]} 75. h6 {[%clk 0:00:04]}  Nf5+ {[%clk 0:00:06]} 76. Kf3 {[%clk 0:00:05]}  Nxh6 {[%clk 0:00:07]} 77. Ke3 {[%clk 0:00:05]}  Nf7 {[%clk 0:00:07]} 78. Kd3 {[%clk 0:00:05]}  Kg7 {[%clk 0:00:08]} 79. Rb6 {[%clk 0:00:05]}  Ne5+ {[%clk 0:00:06]} 80. Kc2 {[%clk 0:00:05]}  Rg4 {[%clk 0:00:06]} 81. Kc3 {[%clk 0:00:05]}  Kf7 {[%clk 0:00:06]} 82. Ra6 {[%clk 0:00:04]}  Ke7 {[%clk 0:00:06]} 83. Rb6 {[%clk 0:00:04]}  Nd7 {[%clk 0:00:06]} 84. Rh6 {[%clk 0:00:04]}  Kd8 {[%clk 0:00:06]} 85. Re6 {[%clk 0:00:04]}  Kc7 {[%clk 0:00:07]} 86. Rh6 {[%clk 0:00:04]}  Rf4 {[%clk 0:00:06]} 87. Kd3 {[%clk 0:00:04]}  Nb6 {[%clk 0:00:06]} 88. Kc3 {[%clk 0:00:04]}  Ra4 {[%clk 0:00:06]} 89. Kb3 {[%clk 0:00:04]}  Rg4 {[%clk 0:00:07]} 90. Kc3 {[%clk 0:00:04]}  Kb7 {[%clk 0:00:07]} 91. Kb3 {[%clk 0:00:04]}  Ka6 {[%clk 0:00:08]} 92. Rh5 {[%clk 0:00:05]}  Nd7 {[%clk 0:00:08]} 93. Kc3 {[%clk 0:00:05]}  Kb6 {[%clk 0:00:08]} 94. Kb3 {[%clk 0:00:05]}  Nc5+ {[%clk 0:00:08]} 95. Kc3 {[%clk 0:00:05]}  Kb5 {[%clk 0:00:09]} 96. Rh3 {[%clk 0:00:05]}  Rc4+ {[%clk 0:00:09]} 97. Kb2 {[%clk 0:00:05]}  Kb4 {[%clk 0:00:10]} 98. Rh8 {[%clk 0:00:05]}  Rf4 {[%clk 0:00:10]} 99. Rb8+ {[%clk 0:00:03]}  Kc4 {[%clk 0:00:10]} 100. Rc8 {[%clk 0:00:04]}  Rf2+ {[%clk 0:00:09]} 101. Kb1 {[%clk 0:00:03]}  Kb4 {[%clk 0:00:09]} 102. Rb8+ {[%clk 0:00:02]}  Kc3 {[%clk 0:00:08]} 103. Rc8 {[%clk 0:00:03]}  Kc4 {[%clk 0:00:08]} 104. Rc7 {[%clk 0:00:03]}  Kd5 {[%clk 0:00:08]} 105. Rc8 {[%clk 0:00:03]}  Kc4 {[%clk 0:00:08]} 106. Rc7 {[%clk 0:00:03]}  Rf5 {[%clk 0:00:08]} 107. Rc8 {[%clk 0:00:03]}  Kb3 {[%clk 0:00:08]} 108. Rb8+ {[%clk 0:00:03]}  Kc3 {[%clk 0:00:09]} 109. Rc8 {[%clk 0:00:03]}  Rf1+ {[%clk 0:00:08]} 110. Ka2 {[%clk 0:00:03]}  Kc4 {[%clk 0:00:08]} 111. Kb2 {[%clk 0:00:04]}  Kb4 {[%clk 0:00:08]} 112. Rb8+ {[%clk 0:00:04]}  Kc4 {[%clk 0:00:08]} 113. Rc8 {[%clk 0:00:04]}  Rf3 {[%clk 0:00:08]} 114. Kb1 {[%clk 0:00:04]}  Rb3+ {[%clk 0:00:08]} 115. Kc2 {[%clk 0:00:05]}  Rf3 {[%clk 0:00:08]} 116. Kd2 {[%clk 0:00:05]}  Rg3 {[%clk 0:00:07]} 117. Ke2 {[%clk 0:00:05]}  Rd3 {[%clk 0:00:08]} 118. Rxc5+ {[%clk 0:00:04]}  Kxc5 {[%clk 0:00:08]} 119. Kxd3 {[%clk 0:00:05]} 1/2-1/2


[Site "https://www.chess.com"]

[Event "Titled Tuesday Blitz January 10 Early 2023"]
[White "Prudnykova, Olga"]
[Black "Shuvalova, Polina"]
[WhiteFideId "14121093"]
[BlackFideId "24171760"]
[WhiteElo "2268"]
[BlackElo "2484"]
[Result "0-1"]
[Round "01"]
[TimeControl "180+2"]
[Date "2023.01.10"]
[WhiteClock "0:00:04"]
[BlackClock "0:00:05"]

1. e4 {[%clk 0:02:56]}  c6 {[%clk 0:02:53]} 2. d4 {[%clk 0:02:56]}  d5 {[%clk 0:02:50]} 3. exd5 {[%clk 0:02:57]}  cxd5 {[%clk 0:02:50]} 4. c4 {[%clk 0:02:58]}  Nf6 {[%clk 0:02:50]} 5. Nc3 {[%clk 0:02:58]}  Nc6 {[%clk 0:02:49]} 6. Nf3 {[%clk 0:02:57]}  e6 {[%clk 0:02:47]} 7. cxd5 {[%clk 0:02:56]}  exd5 {[%clk 0:02:46]} 8. Bb5 {[%clk 0:02:56]}  Bd6 {[%clk 0:02:45]} 9. Ne5 {[%clk 0:02:53]}  O-O {[%clk 0:02:40]} 10. Bxc6 {[%clk 0:02:51]}  bxc6 {[%clk 0:02:38]} 11. O-O {[%clk 0:02:51]}  c5 {[%clk 0:02:31]} 12. Re1 {[%clk 0:02:28]}  Be6 {[%clk 0:02:22]} 13. Nb5 {[%clk 0:02:18]}  Bxe5 {[%clk 0:02:11]} 14. dxe5 {[%clk 0:02:17]}  Nd7 {[%clk 0:02:08]} 15. f4 {[%clk 0:02:02]}  Qb6 {[%clk 0:02:05]} 16. Nd6 {[%clk 0:01:39]}  d4 {[%clk 0:02:00]} 17. b3 {[%clk 0:01:34]}  a5 {[%clk 0:01:57]} 18. Kh1 {[%clk 0:01:06]}  Qc6 {[%clk 0:01:48]} 19. Qh5 {[%clk 0:00:53]}  a4 {[%clk 0:01:24]} 20. bxa4 {[%clk 0:00:46]}  Rxa4 {[%clk 0:01:19]} 21. f5 {[%clk 0:00:45]}  Bd5 {[%clk 0:01:14]} 22. Qh3 {[%clk 0:00:27]}  Nxe5 {[%clk 0:01:01]} 23. Rxe5 {[%clk 0:00:23]}  Qxd6 {[%clk 0:00:59]} 24. Bf4 {[%clk 0:00:23]}  Qc6 {[%clk 0:00:58]} 25. Qg3 {[%clk 0:00:20]}  Rxa2 {[%clk 0:00:42]} 26. Rxa2 {[%clk 0:00:19]}  Bxa2 {[%clk 0:00:43]} 27. h3 {[%clk 0:00:19]}  Ra8 {[%clk 0:00:30]} 28. Re7 {[%clk 0:00:18]}  Bd5 {[%clk 0:00:28]} 29. Rc7 {[%clk 0:00:17]}  Qe8 {[%clk 0:00:14]} 30. Be5 {[%clk 0:00:15]}  g6 {[%clk 0:00:12]} 31. fxg6 {[%clk 0:00:15]}  hxg6 {[%clk 0:00:13]} 32. Bf6 {[%clk 0:00:12]}  Ra6 {[%clk 0:00:11]} 33. Qh4 {[%clk 0:00:11]}  Rxf6 {[%clk 0:00:12]} 34. Qxf6 {[%clk 0:00:10]}  d3 {[%clk 0:00:08]} 35. Re7 {[%clk 0:00:10]}  Qf8 {[%clk 0:00:07]} 36. Qe5 {[%clk 0:00:10]}  d2 {[%clk 0:00:03]} 37. Qxd5 {[%clk 0:00:06]}  Qxe7 {[%clk 0:00:04]} 38. Qxd2 {[%clk 0:00:07]}  Qe5 {[%clk 0:00:04]} 39. Qd8+ {[%clk 0:00:06]}  Kg7 {[%clk 0:00:05]} 40. Qd2 {[%clk 0:00:06]}  Qa1+ {[%clk 0:00:05]} 41. Kh2 {[%clk 0:00:05]}  Qe5+ {[%clk 0:00:06]} 42. Kg1 {[%clk 0:00:05]}  c4 {[%clk 0:00:06]} 43. Qc2 {[%clk 0:00:05]}  c3 {[%clk 0:00:07]} 44. Kf1 {[%clk 0:00:05]}  Qe3 {[%clk 0:00:07]} 45. Qd1 {[%clk 0:00:02]}  Qf4+ {[%clk 0:00:06]} 46. Ke2 {[%clk 0:00:02]}  Qe4+ {[%clk 0:00:06]} 47. Kf2 {[%clk 0:00:02]}  c2 {[%clk 0:00:06]} 48. Qc1 {[%clk 0:00:02]}  Qd4+ {[%clk 0:00:06]} 49. Ke2 {[%clk 0:00:02]}  Qe4+ {[%clk 0:00:05]} 50. Kd2 {[%clk 0:00:02]}  Qxg2+ {[%clk 0:00:05]} 51. Kd3 {[%clk 0:00:03]}  Qxh3+ {[%clk 0:00:06]} 52. Kxc2 {[%clk 0:00:04]}  Qc8+ {[%clk 0:00:05]} 0-1


[Site "https://www.chess.com"]

[Event "Titled Tuesday Blitz January 10 Early 2023"]
[White "Skliarov, Viktor"]
[Black "Golizadeh, Asghar"]
[WhiteFideId "14106736"]
[BlackFideId "12505269"]
[WhiteElo "2383"]
[BlackElo "2455"]
[Result "0-1"]
[Round "01"]
[TimeControl "180+2"]
[Date "2023.01.10"]
[WhiteClock "0:00:07"]
[BlackClock "0:00:14"]

1. e4 {[%clk 0:02:59]}  c5 {[%clk 0:01:24]} 2. Nf3 {[%clk 0:02:55]}  e6 {[%clk 0:01:23]} 3. c3 {[%clk 0:02:54]}  d5 {[%clk 0:01:23]} 4. e5 {[%clk 0:02:54]}  d4 {[%clk 0:01:23]} 5. cxd4 {[%clk 0:02:52]}  cxd4 {[%clk 0:01:24]} 6. Bb5+ {[%clk 0:02:53]}  Bd7 {[%clk 0:01:23]} 7. Nxd4 {[%clk 0:02:53]}  Bxb5 {[%clk 0:01:22]} 8. Nxb5 {[%clk 0:02:53]}  Nc6 {[%clk 0:01:23]} 9. d4 {[%clk 0:02:52]}  a6 {[%clk 0:01:20]} 10. N5c3 {[%clk 0:02:52]}  Qxd4 {[%clk 0:01:20]} 11. Qxd4 {[%clk 0:01:58]}  Nxd4 {[%clk 0:01:19]} 12. Kd1 {[%clk 0:01:58]}  O-O-O {[%clk 0:01:19]} 13. Nd2 {[%clk 0:01:58]}  Ne7 {[%clk 0:01:17]} 14. f4 {[%clk 0:01:41]}  Ng6 {[%clk 0:01:17]} 15. g3 {[%clk 0:01:39]}  h5 {[%clk 0:01:17]} 16. Rf1 {[%clk 0:01:31]}  h4 {[%clk 0:01:15]} 17. g4 {[%clk 0:01:30]}  Nc6 {[%clk 0:01:07]} 18. Ke2 {[%clk 0:01:21]}  Rd4 {[%clk 0:01:05]} 19. Nde4 {[%clk 0:01:18]}  Bb4 {[%clk 0:01:00]} 20. Be3 {[%clk 0:01:16]}  Bxc3 {[%clk 0:00:55]} 21. Nxc3 {[%clk 0:01:13]}  Rb4 {[%clk 0:00:53]} 22. b3 {[%clk 0:01:05]}  Nd4+ {[%clk 0:00:52]} 23. Bxd4 {[%clk 0:01:03]}  Rxd4 {[%clk 0:00:52]} 24. Ke3 {[%clk 0:01:04]}  Rhd8 {[%clk 0:00:51]} 25. Rfd1 {[%clk 0:01:03]}  Rxf4 {[%clk 0:00:46]} 26. Rxd8+ {[%clk 0:01:00]}  Kxd8 {[%clk 0:00:47]} 27. h3 {[%clk 0:00:36]}  Rb4 {[%clk 0:00:41]} 28. Rd1+ {[%clk 0:00:35]}  Ke7 {[%clk 0:00:40]} 29. Na4 {[%clk 0:00:12]}  Nxe5 {[%clk 0:00:38]} 30. Nc5 {[%clk 0:00:11]}  Rb5 {[%clk 0:00:36]} 31. Ne4 {[%clk 0:00:11]}  Rd5 {[%clk 0:00:27]} 32. Rxd5 {[%clk 0:00:10]}  exd5 {[%clk 0:00:27]} 33. Nc5 {[%clk 0:00:11]}  Kd6 {[%clk 0:00:18]} 34. Nxb7+ {[%clk 0:00:11]}  Kc6 {[%clk 0:00:19]} 35. Na5+ {[%clk 0:00:11]}  Kb5 {[%clk 0:00:19]} 36. Nb7 {[%clk 0:00:12]}  Kc6 {[%clk 0:00:19]} 37. Na5+ {[%clk 0:00:12]}  Kb6 {[%clk 0:00:20]} 38. b4 {[%clk 0:00:08]}  Nc4+ {[%clk 0:00:21]} 39. Nxc4+ {[%clk 0:00:05]}  dxc4 {[%clk 0:00:22]} 40. a4 {[%clk 0:00:06]}  g5 {[%clk 0:00:21]} 41. Kd4 {[%clk 0:00:06]}  Kc7 {[%clk 0:00:18]} 42. Kxc4 {[%clk 0:00:06]}  f5 {[%clk 0:00:18]} 43. gxf5 {[%clk 0:00:04]}  g4 {[%clk 0:00:19]} 44. f6 {[%clk 0:00:04]}  Kd7 {[%clk 0:00:18]} 45. f7 {[%clk 0:00:05]}  Ke7 {[%clk 0:00:18]} 46. b5 {[%clk 0:00:06]}  axb5+ {[%clk 0:00:17]} 47. axb5 {[%clk 0:00:06]}  gxh3 {[%clk 0:00:15]} 48. b6 {[%clk 0:00:06]}  h2 {[%clk 0:00:16]} 49. b7 {[%clk 0:00:07]}  h1=Q {[%clk 0:00:16]} 50. f8=Q+ {[%clk 0:00:08]}  Kxf8 {[%clk 0:00:16]} 51. b8=Q+ {[%clk 0:00:08]}  Kf7 {[%clk 0:00:17]} 52. Qf4+ {[%clk 0:00:08]}  Ke6 {[%clk 0:00:16]} 53. Qg4+ {[%clk 0:00:08]}  Ke5 {[%clk 0:00:17]} 54. Qg5+ {[%clk 0:00:08]}  Ke6 {[%clk 0:00:17]} 55. Qg6+ {[%clk 0:00:09]}  Kd7 {[%clk 0:00:16]} 56. Qh7+ {[%clk 0:00:08]}  Kc6 {[%clk 0:00:16]} 57. Qg6+ {[%clk 0:00:08]}  Kb7 {[%clk 0:00:17]} 58. Qh7+ {[%clk 0:00:08]}  Kb6 {[%clk 0:00:17]} 59. Kb3 {[%clk 0:00:05]}  Qf3+ {[%clk 0:00:15]} 60. Ka4 {[%clk 0:00:05]}  Qc6+ {[%clk 0:00:14]} 61. Ka3 {[%clk 0:00:05]}  Qf3+ {[%clk 0:00:14]} 62. Ka4 {[%clk 0:00:05]}  Qg4+ {[%clk 0:00:14]} 63. Ka3 {[%clk 0:00:05]}  h3 {[%clk 0:00:14]} 64. Qh6+ {[%clk 0:00:05]}  Kc5 {[%clk 0:00:15]} 65. Qe3+ {[%clk 0:00:05]}  Kd5 {[%clk 0:00:15]} 66. Qd3+ {[%clk 0:00:05]}  Ke5 {[%clk 0:00:15]} 67. Qe3+ {[%clk 0:00:06]}  Kf5 {[%clk 0:00:16]} 68. Qc5+ {[%clk 0:00:06]}  Kf4 {[%clk 0:00:16]} 69. Qd4+ {[%clk 0:00:07]}  Kg3 {[%clk 0:00:16]} 70. Qd6+ {[%clk 0:00:06]}  Qf4 {[%clk 0:00:16]} 71. Qg6+ {[%clk 0:00:06]}  Kf2 {[%clk 0:00:15]} 72. Qc2+ {[%clk 0:00:07]}  Kg1 {[%clk 0:00:15]} 73. Qd1+ {[%clk 0:00:06]}  Kg2 {[%clk 0:00:15]} 74. Qe2+ {[%clk 0:00:06]}  Qf2 {[%clk 0:00:15]} 75. Qe8 {[%clk 0:00:03]}  h2 {[%clk 0:00:15]} 76. Ka4 {[%clk 0:00:03]}  h1=Q {[%clk 0:00:15]} 77. Qe4+ {[%clk 0:00:04]}  Kh2 {[%clk 0:00:14]} 78. Qg4 {[%clk 0:00:04]}  Qa1+ {[%clk 0:00:13]} 79. Kb5 {[%clk 0:00:04]}  Qfb2+ {[%clk 0:00:13]} 80. Kc6 {[%clk 0:00:05]}  Qac1+ {[%clk 0:00:13]} 81. Kd7 {[%clk 0:00:05]}  Qbd2+ {[%clk 0:00:13]} 82. Ke8 {[%clk 0:00:06]}  Qce1+ {[%clk 0:00:13]} 83. Kf7 {[%clk 0:00:06]}  Qdf2+ {[%clk 0:00:14]} 84. Kg8 {[%clk 0:00:07]}  Qe8+ {[%clk 0:00:14]} 85. Kh7 {[%clk 0:00:07]}  Qef7+ {[%clk 0:00:14]} 86. Kh6 {[%clk 0:00:07]}  Q2f6+ {[%clk 0:00:14]} 87. Qg6 {[%clk 0:00:07]}  Q7xg6# {[%clk 0:00:14]} 0-1


[Site "https://www.chess.com"]

[Event "Titled Tuesday Blitz January 10 Early 2023"]
[White "Bas Mas, Jose Joaquin"]
[Black "Kim, Yoon-Young"]
[WhiteFideId "22219064"]
[BlackFideId "30908779"]
[WhiteElo "2197"]
[BlackElo "2304"]
[Result "0-1"]
[Round "01"]
[TimeControl "180+2"]
[Date "2023.01.10"]
[WhiteClock "0:00:58"]
[BlackClock "0:01:20"]

1. e4 {[%clk 0:02:58]}  e5 {[%clk 0:02:57]} 2. Nf3 {[%clk 0:02:57]}  Nc6 {[%clk 0:02:57]} 3. Bc4 {[%clk 0:02:57]}  Nf6 {[%clk 0:02:57]} 4. d3 {[%clk 0:02:57]}  Bc5 {[%clk 0:02:57]} 5. O-O {[%clk 0:02:57]}  d6 {[%clk 0:02:44]} 6. c3 {[%clk 0:02:56]}  a5 {[%clk 0:02:38]} 7. a4 {[%clk 0:02:56]}  O-O {[%clk 0:02:38]} 8. Nbd2 {[%clk 0:02:54]}  Ne7 {[%clk 0:02:38]} 9. Re1 {[%clk 0:02:50]}  Ng6 {[%clk 0:02:38]} 10. Nf1 {[%clk 0:02:48]}  Be6 {[%clk 0:02:36]} 11. Qb3 {[%clk 0:02:39]}  Bxc4 {[%clk 0:02:30]} 12. Qxc4 {[%clk 0:02:39]}  Re8 {[%clk 0:02:27]} 13. b4 {[%clk 0:02:30]}  Bb6 {[%clk 0:02:24]} 14. Be3 {[%clk 0:02:28]}  d5 {[%clk 0:02:20]} 15. exd5 {[%clk 0:02:25]}  Nxd5 {[%clk 0:02:18]} 16. b5 {[%clk 0:02:10]}  Qd7 {[%clk 0:02:10]} 17. Rad1 {[%clk 0:02:07]}  Rad8 {[%clk 0:02:07]} 18. Qb3 {[%clk 0:01:45]}  Ngf4 {[%clk 0:01:52]} 19. d4 {[%clk 0:01:35]}  Qg4 {[%clk 0:01:46]} 20. Ng3 {[%clk 0:01:27]}  exd4 {[%clk 0:01:36]} 21. Bxd4 {[%clk 0:01:14]}  Nxg2 {[%clk 0:01:36]} 22. Qxd5 {[%clk 0:01:06]}  Nf4 {[%clk 0:01:25]} 23. Rxe8+ {[%clk 0:01:00]}  Rxe8 {[%clk 0:01:26]} 24. Qf5 {[%clk 0:00:58]}  Qxf3 {[%clk 0:01:20]} 0-1


[Site "https://www.chess.com"]